[Event "Early-Titled-Tuesday-Blitz-February-20-2024"]
[Site "Chess.com"]
[Date "2024.02.20"]
[Round "2"]
[White "Bauman_Guy"]
[Black "Huragan007"]
[Result "1-0"]
[WhiteElo "2902"]
[BlackElo "2601"]
[TimeControl "180+1"]
[EndTime "8:17:26 PST"]
[Termination "Bauman_Guy won by resignation"]

1. e4 {[%clk 0:03:00.9]} 1... c5 {[%clk 0:03:00]} 2. Nf3 {[%clk 0:03:01.3]} 2...
d6 {[%clk 0:03:00.4]} 3. d4 {[%clk 0:03:01.4]} 3... cxd4 {[%clk 0:03:01.3]} 4.
Nxd4 {[%clk 0:03:02.3]} 4... Nf6 {[%clk 0:03:02]} 5. Nc3 {[%clk 0:03:02.8]} 5...
g6 {[%clk 0:03:02.8]} 6. Be3 {[%clk 0:03:02.2]} 6... Bg7 {[%clk 0:03:02.9]} 7.
f3 {[%clk 0:03:02.8]} 7... Nc6 {[%clk 0:03:03.2]} 8. Qd2 {[%clk 0:03:03.3]} 8...
O-O {[%clk 0:03:03.5]} 9. O-O-O {[%clk 0:03:03.7]} 9... d5 {[%clk 0:03:03.9]}
10. exd5 {[%clk 0:03:04.6]} 10... Nxd5 {[%clk 0:03:04.6]} 11. Nxc6 {[%clk
0:03:05.5]} 11... bxc6 {[%clk 0:03:05.5]} 12. Bd4 {[%clk 0:03:06.2]} 12... e5
{[%clk 0:03:05.9]} 13. Bc5 {[%clk 0:03:06.4]} 13... Be6 {[%clk 0:03:06.5]} 14.
Ne4 {[%clk 0:03:07]} 14... Re8 {[%clk 0:03:04.4]} 15. h4 {[%clk 0:03:06.6]}
15... h6 {[%clk 0:03:04.3]} 16. h5 {[%clk 0:03:03.9]} 16... g5 {[%clk
0:03:04.4]} 17. g4 {[%clk 0:03:03.9]} 17... Rb8 {[%clk 0:02:56.1]} 18. Bc4
{[%clk 0:03:02.3]} 18... Qc7 {[%clk 0:02:52.5]} 19. Bd6 {[%clk 0:02:58.3]} 19...
Qb7 {[%clk 0:02:48.4]} 20. Bxb8 {[%clk 0:02:51.7]} 20... Rxb8 {[%clk 0:02:49.3]}
21. Bb3 {[%clk 0:02:51.7]} 21... Qb6 {[%clk 0:02:22]} 22. Qf2 {[%clk 0:02:49.8]}
22... Qc7 {[%clk 0:01:39.9]} 23. Nc5 {[%clk 0:02:35.3]} 23... Qa5 {[%clk
0:01:22.1]} 24. Nxe6 {[%clk 0:02:28.9]} 24... fxe6 {[%clk 0:01:22.4]} 25. Qe1
{[%clk 0:02:27.4]} 25... Qb6 {[%clk 0:01:17.5]} 26. Qe4 {[%clk 0:02:22.8]} 26...
a5 {[%clk 0:01:10.1]} 27. a4 {[%clk 0:02:22.3]} 27... Qc5 {[%clk 0:01:05.4]} 28.
Kb1 {[%clk 0:02:10.1]} 28... Rb4 {[%clk 0:00:57.6]} 29. Qg6 {[%clk 0:02:06.5]}
29... Qe7 {[%clk 0:00:44]} 30. Qd3 {[%clk 0:02:04.7]} 30... Qc5 {[%clk
0:00:42.3]} 31. Rhe1 {[%clk 0:02:03]} 31... Rd4 {[%clk 0:00:35]} 32. Qg6 {[%clk
0:01:58.2]} 32... Rxd1+ {[%clk 0:00:19.1]} 33. Rxd1 {[%clk 0:01:57]} 33... Qe7
{[%clk 0:00:20]} 34. Re1 {[%clk 0:01:46.6]} 34... Nf4 {[%clk 0:00:18.4]} 35. Qe4
{[%clk 0:01:45.8]} 35... Nd5 {[%clk 0:00:18.7]} 36. c3 {[%clk 0:01:38.4]} 36...
Qb7 {[%clk 0:00:14.4]} 37. Ka2 {[%clk 0:01:38.3]} 37... Qb6 {[%clk 0:00:12.4]}
38. Bc2 {[%clk 0:01:36.9]} 38... Qc5 {[%clk 0:00:06.7]} 39. Bd3 {[%clk
0:01:21.3]} 39... Kf8 {[%clk 0:00:06.6]} 40. Re2 {[%clk 0:01:19.8]} 40... Nf4
{[%clk 0:00:06.3]} 41. Rd2 {[%clk 0:01:20.1]} 41... Nd5 {[%clk 0:00:06.4]} 42.
Bc4 {[%clk 0:01:16.4]} 42... Ke7 {[%clk 0:00:05.1]} 43. Bb3 {[%clk 0:01:15.9]}
43... Kf8 {[%clk 0:00:05.2]} 44. Qc4 {[%clk 0:01:14.9]} 44... Qb6 {[%clk
0:00:04.3]} 45. Qe4 {[%clk 0:01:10.1]} 45... Ke7 {[%clk 0:00:04]} 46. Qg6 {[%clk
0:01:04.9]} 46... Bf6 {[%clk 0:00:04.5]} 47. Qxh6 {[%clk 0:01:03.7]} 47... Qe3
{[%clk 0:00:05.3]} 48. Qh7+ {[%clk 0:01:03.7]} 48... Kd6 {[%clk 0:00:05.5]} 49.
Qd3 {[%clk 0:01:04.6]} 49... Qb6 {[%clk 0:00:04.9]} 50. c4 {[%clk 0:01:04.6]}
50... e4 {[%clk 0:00:03.5]} 51. fxe4 {[%clk 0:01:05.5]} 51... Ke7 {[%clk
0:00:03.6]} 52. exd5 {[%clk 0:01:05.8]} 52... cxd5 {[%clk 0:00:04.1]} 53. cxd5
{[%clk 0:01:06]} 53... Qb4 {[%clk 0:00:04.5]} 54. d6+ {[%clk 0:01:05.6]} 54...
Kd7 {[%clk 0:00:05.3]} 55. Qb5+ {[%clk 0:01:05.8]} 55... Qxb5 {[%clk 0:00:05.6]}
56. axb5 {[%clk 0:01:06.7]} 1-0

[Event "Early-Titled-Tuesday-Blitz-February-20-2024"]
[Site "Chess.com"]
[Date "2024.02.20"]
[Round "2"]
[White "Dinosaurio_1975"]
[Black "DonkyDonkyDonkey"]
[Result "0-1"]
[WhiteElo "2608"]
[BlackElo "2920"]
[TimeControl "180+1"]
[EndTime "8:17:28 PST"]
[Termination "DonkyDonkyDonkey won by resignation"]

1. e4 {[%clk 0:03:00.9]} 1... e5 {[%clk 0:03:00.4]} 2. Nf3 {[%clk 0:03:00]} 2...
d5 {[%clk 0:03:00.9]} 3. Nxe5 {[%clk 0:02:55.7]} 3... Bd6 {[%clk 0:03:00.9]} 4.
d4 {[%clk 0:02:53.6]} 4... dxe4 {[%clk 0:03:01.4]} 5. Nc3 {[%clk 0:02:49.4]}
5... Bxe5 {[%clk 0:03:01.7]} 6. dxe5 {[%clk 0:02:49.5]} 6... Qxd1+ {[%clk
0:03:02.6]} 7. Nxd1 {[%clk 0:02:46.4]} 7... Nc6 {[%clk 0:03:02.9]} 8. Bf4 {[%clk
0:02:45.6]} 8... Nge7 {[%clk 0:03:02.6]} 9. Bb5 {[%clk 0:02:43.5]} 9... Bf5
{[%clk 0:03:02.6]} 10. Ne3 {[%clk 0:02:41.7]} 10... O-O-O {[%clk 0:03:03]} 11.
Nxf5 {[%clk 0:02:40.3]} 11... Nxf5 {[%clk 0:03:03.9]} 12. Bxc6 {[%clk 0:02:38]}
12... bxc6 {[%clk 0:03:04.8]} 13. c3 {[%clk 0:02:30.4]} 13... h6 {[%clk
0:03:03.5]} 14. Rd1 {[%clk 0:02:22]} 14... g5 {[%clk 0:03:03.2]} 15. Bg3 {[%clk
0:02:21.2]} 15... h5 {[%clk 0:02:58.5]} 16. h4 {[%clk 0:02:17.2]} 16... g4
{[%clk 0:02:49]} 17. Bf4 {[%clk 0:02:15.1]} 17... Rxd1+ {[%clk 0:02:44.3]} 18.
Kxd1 {[%clk 0:02:15.3]} 18... Rd8+ {[%clk 0:02:45]} 19. Kc2 {[%clk 0:02:15.8]}
19... Rd3 {[%clk 0:02:42.9]} 20. Re1 {[%clk 0:02:02.7]} 20... Nxh4 {[%clk
0:02:43.1]} 21. Rxe4 {[%clk 0:02:02.4]} 21... Rd5 {[%clk 0:02:40.2]} 22. c4
{[%clk 0:01:55.1]} 22... Ra5 {[%clk 0:02:31.9]} 23. g3 {[%clk 0:01:50.7]} 23...
Nf3 {[%clk 0:02:32.2]} 24. a3 {[%clk 0:01:34.4]} 24... c5 {[%clk 0:02:32.5]} 25.
Kc3 {[%clk 0:01:17.9]} 25... Kd7 {[%clk 0:02:23]} 26. Re3 {[%clk 0:01:07]} 26...
h4 {[%clk 0:01:43.5]} 27. gxh4 {[%clk 0:01:03.5]} 27... Nxh4 {[%clk 0:01:44.4]}
28. Rd3+ {[%clk 0:01:00.6]} 28... Ke6 {[%clk 0:01:44.7]} 29. Rd8 {[%clk
0:01:00.8]} 29... Ng6 {[%clk 0:01:43.9]} 30. Bg3 {[%clk 0:00:59.4]} 30... Ra6
{[%clk 0:01:43.5]} 31. Rd5 {[%clk 0:00:36.3]} 31... Rc6 {[%clk 0:01:43.6]} 32.
b4 {[%clk 0:00:33.6]} 32... cxb4+ {[%clk 0:01:34.3]} 33. axb4 {[%clk 0:00:34.5]}
33... Ra6 {[%clk 0:01:34.6]} 34. b5 {[%clk 0:00:33.1]} 34... Ra2 {[%clk
0:01:32.6]} 35. Rd8 {[%clk 0:00:22.9]} 35... Ne7 {[%clk 0:01:16]} 36. c5 {[%clk
0:00:15.9]} 36... Nf5 {[%clk 0:01:12.6]} 37. c6 {[%clk 0:00:06.5]} 37... Ra5
{[%clk 0:00:59.5]} 38. Kb4 {[%clk 0:00:06.6]} 38... Ra1 {[%clk 0:00:56.7]} 39.
Rd7 {[%clk 0:00:07.2]} 39... Rb1+ {[%clk 0:00:56.7]} 40. Kc4 {[%clk 0:00:06.5]}
40... Rc1+ {[%clk 0:00:54.6]} 41. Kb4 {[%clk 0:00:06.7]} 41... Ne7 {[%clk
0:00:55.1]} 42. Ka5 {[%clk 0:00:03.8]} 42... Ra1+ {[%clk 0:00:52.3]} 43. Kb4
{[%clk 0:00:04.2]} 43... Nd5+ {[%clk 0:00:52.9]} 44. Kc4 {[%clk 0:00:04.8]}
44... Rc1+ {[%clk 0:00:52.9]} 45. Kb3 {[%clk 0:00:04.6]} 45... Rc5 {[%clk
0:00:51.4]} 46. Ka4 {[%clk 0:00:04.1]} 46... Nb6+ {[%clk 0:00:51.8]} 47. Kb4
{[%clk 0:00:03.9]} 47... Nxd7 {[%clk 0:00:52.5]} 48. cxd7 {[%clk 0:00:03.2]}
48... Rd5 {[%clk 0:00:53.3]} 49. Kc4 {[%clk 0:00:03.2]} 49... Rxd7 {[%clk
0:00:53.7]} 0-1

[Event "Early-Titled-Tuesday-Blitz-February-20-2024"]
[Site "Chess.com"]
[Date "2024.02.20"]
[Round "2"]
[White "Aygehovit1992"]
[Black "marsofsilva"]
[Result "1-0"]
[WhiteElo "2692"]
[BlackElo "2162"]
[TimeControl "180+1"]
[EndTime "8:17:29 PST"]
[Termination "Aygehovit1992 won by resignation"]

1. e4 {[%clk 0:03:00.9]} 1... c5 {[%clk 0:02:59.1]} 2. Nf3 {[%clk 0:03:00.5]}
2... Nc6 {[%clk 0:02:59]} 3. Bb5 {[%clk 0:03:00.4]} 3... Nf6 {[%clk 0:02:58.6]}
4. Bxc6 {[%clk 0:02:59.6]} 4... dxc6 {[%clk 0:02:59.5]} 5. d3 {[%clk 0:03:00.1]}
5... g6 {[%clk 0:02:59.2]} 6. Be3 {[%clk 0:02:56.9]} 6... b6 {[%clk 0:02:58.6]}
7. a4 {[%clk 0:02:51.1]} 7... Bg7 {[%clk 0:02:41.2]} 8. h3 {[%clk 0:02:48.6]}
8... O-O {[%clk 0:02:37.1]} 9. a5 {[%clk 0:02:43.6]} 9... Rb8 {[%clk 0:02:25.5]}
10. axb6 {[%clk 0:02:41.2]} 10... axb6 {[%clk 0:02:26.4]} 11. Nbd2 {[%clk
0:02:39.9]} 11... Ne8 {[%clk 0:02:24.7]} 12. Qc1 {[%clk 0:02:35.3]} 12... Nc7
{[%clk 0:02:24]} 13. Nc4 {[%clk 0:02:32.1]} 13... Ne6 {[%clk 0:02:20.2]} 14. Bh6
{[%clk 0:02:31.9]} 14... Nd4 {[%clk 0:02:15.2]} 15. Nxd4 {[%clk 0:02:18.4]}
15... cxd4 {[%clk 0:02:09.9]} 16. Bxg7 {[%clk 0:02:17.7]} 16... Kxg7 {[%clk
0:02:09.7]} 17. Qf4 {[%clk 0:02:15.4]} 17... Be6 {[%clk 0:01:56.6]} 18. Nd2
{[%clk 0:02:05.9]} 18... Ra8 {[%clk 0:01:39]} 19. O-O {[%clk 0:02:04]} 19... Qd7
{[%clk 0:01:33.8]} 20. Nf3 {[%clk 0:01:56.7]} 20... f6 {[%clk 0:01:28.6]} 21. e5
{[%clk 0:01:51.7]} 21... c5 {[%clk 0:01:18.1]} 22. exf6+ {[%clk 0:01:36.5]}
22... exf6 {[%clk 0:01:16.3]} 23. Nd2 {[%clk 0:01:27.9]} 23... Bd5 {[%clk
0:01:01.9]} 24. h4 {[%clk 0:01:18.6]} 24... Qc6 {[%clk 0:00:55.2]} 25. Qg3
{[%clk 0:01:10.5]} 25... Rfe8 {[%clk 0:00:48.1]} 26. h5 {[%clk 0:01:09.8]} 26...
Re2 {[%clk 0:00:41]} 27. Rxa8 {[%clk 0:01:09.3]} 27... Qxa8 {[%clk 0:00:40.5]}
28. Qc7+ {[%clk 0:01:08.2]} 28... Kg8 {[%clk 0:00:25.2]} 29. h6 {[%clk 0:00:53]}
29... Qf8 {[%clk 0:00:16.1]} 30. Nc4 {[%clk 0:00:24.8]} 30... Bxc4 {[%clk
0:00:13.7]} 31. dxc4 {[%clk 0:00:25.7]} 31... Qxh6 {[%clk 0:00:12.9]} 32. Ra1
{[%clk 0:00:25.4]} 32... Qf8 {[%clk 0:00:11.6]} 33. g3 {[%clk 0:00:19.6]} 33...
Re8 {[%clk 0:00:11]} 34. Ra7 {[%clk 0:00:18.5]} 34... Qh6 {[%clk 0:00:06.1]} 35.
Qf7+ {[%clk 0:00:17.3]} 1-0

[Event "Early-Titled-Tuesday-Blitz-February-20-2024"]
[Site "Chess.com"]
[Date "2024.02.20"]
[Round "2"]
[White "Dacean99"]
[Black "SchmakAttack"]
[Result "0-1"]
[WhiteElo "2566"]
[BlackElo "2816"]
[TimeControl "180+1"]
[EndTime "8:17:33 PST"]
[Termination "SchmakAttack won by resignation"]

1. e4 {[%clk 0:02:56.7]} 1... c5 {[%clk 0:02:56.8]} 2. c3 {[%clk 0:02:55.8]}
2... d5 {[%clk 0:02:55.4]} 3. exd5 {[%clk 0:02:55.3]} 3... Nf6 {[%clk
0:02:55.9]} 4. d4 {[%clk 0:02:52.8]} 4... Nxd5 {[%clk 0:02:53.6]} 5. dxc5 {[%clk
0:02:43.1]} 5... e6 {[%clk 0:02:53.4]} 6. Bb5+ {[%clk 0:02:37.6]} 6... Bd7
{[%clk 0:02:51.3]} 7. Bxd7+ {[%clk 0:02:36.5]} 7... Qxd7 {[%clk 0:02:49.4]} 8.
Nf3 {[%clk 0:02:35.4]} 8... Bxc5 {[%clk 0:02:47.4]} 9. O-O {[%clk 0:02:35.8]}
9... O-O {[%clk 0:02:41.2]} 10. Nbd2 {[%clk 0:02:31]} 10... Qc7 {[%clk
0:02:31.5]} 11. Ne4 {[%clk 0:02:29.3]} 11... Be7 {[%clk 0:02:32.1]} 12. Qc2
{[%clk 0:02:25.4]} 12... h6 {[%clk 0:02:28.4]} 13. Bd2 {[%clk 0:02:19]} 13...
Nd7 {[%clk 0:02:18.3]} 14. Rad1 {[%clk 0:02:14.4]} 14... b5 {[%clk 0:02:15.9]}
15. a4 {[%clk 0:02:12.3]} 15... a6 {[%clk 0:02:08.6]} 16. axb5 {[%clk
0:02:07.5]} 16... axb5 {[%clk 0:02:09.5]} 17. Nd4 {[%clk 0:02:07.8]} 17... Qb7
{[%clk 0:01:46]} 18. Rfe1 {[%clk 0:02:06.3]} 18... Nc5 {[%clk 0:01:38.8]} 19.
Nxc5 {[%clk 0:02:04.4]} 19... Bxc5 {[%clk 0:01:39.7]} 20. Qe4 {[%clk 0:02:04]}
20... Bxd4 {[%clk 0:01:25.1]} 21. Qxd4 {[%clk 0:02:03.5]} 21... Ra4 {[%clk
0:01:25.3]} 22. Qe5 {[%clk 0:01:53.6]} 22... Rg4 {[%clk 0:01:14.1]} 23. f3
{[%clk 0:01:51.1]} 23... Ra4 {[%clk 0:01:00.9]} 24. Qg3 {[%clk 0:01:46.9]} 24...
Kh7 {[%clk 0:00:57.4]} 25. Re2 {[%clk 0:01:45.6]} 25... Rfa8 {[%clk 0:00:57]}
26. Rde1 {[%clk 0:01:43.1]} 26... Ra1 {[%clk 0:00:54.8]} 27. h3 {[%clk 0:01:42]}
27... Rxe1+ {[%clk 0:00:53.4]} 28. Qxe1 {[%clk 0:01:36.7]} 28... Qc6 {[%clk
0:00:47]} 29. Kh1 {[%clk 0:01:34.7]} 29... Qc4 {[%clk 0:00:42.2]} 30. Re5 {[%clk
0:01:20.4]} 30... Ra2 {[%clk 0:00:38.9]} 31. Qe4+ {[%clk 0:00:35]} 31... Kg8
{[%clk 0:00:24.2]} 32. Qc2 {[%clk 0:00:21]} 32... Nb4 {[%clk 0:00:15.9]} 33. Qb1
{[%clk 0:00:16.5]} 33... Nd3 {[%clk 0:00:11.7]} 34. Re4 {[%clk 0:00:15.1]} 34...
Rxb2 {[%clk 0:00:12.2]} 35. Qd1 {[%clk 0:00:08.8]} 35... Nf2+ {[%clk 0:00:09.9]}
0-1

[Event "Early-Titled-Tuesday-Blitz-February-20-2024"]
[Site "Chess.com"]
[Date "2024.02.20"]
[Round "2"]
[White "arturdailima"]
[Black "ansko1999"]
[Result "0-1"]
[WhiteElo "2390"]
[BlackElo "2691"]
[TimeControl "180+1"]
[EndTime "8:17:33 PST"]
[Termination "ansko1999 won by resignation"]

1. e4 {[%clk 0:03:00.9]} 1... d5 {[%clk 0:02:58.1]} 2. Nc3 {[%clk 0:02:57.4]}
2... dxe4 {[%clk 0:02:55.3]} 3. Nxe4 {[%clk 0:02:58.3]} 3... Nd7 {[%clk
0:02:43]} 4. Nf3 {[%clk 0:02:52.1]} 4... Ngf6 {[%clk 0:02:42.2]} 5. Qe2 {[%clk
0:02:49]} 5... Nxe4 {[%clk 0:02:41.1]} 6. Qxe4 {[%clk 0:02:48.2]} 6... Nf6
{[%clk 0:02:41.7]} 7. Qa4+ {[%clk 0:02:48.3]} 7... Bd7 {[%clk 0:02:36.1]} 8. Qb3
{[%clk 0:02:48.2]} 8... Bc6 {[%clk 0:02:36.3]} 9. Ne5 {[%clk 0:02:43.4]} 9...
Bd5 {[%clk 0:02:34.6]} 10. Qa4+ {[%clk 0:02:41.8]} 10... c6 {[%clk 0:02:32.5]}
11. d4 {[%clk 0:02:37.9]} 11... e6 {[%clk 0:02:31.3]} 12. c3 {[%clk 0:02:30]}
12... Bd6 {[%clk 0:02:27.1]} 13. Bg5 {[%clk 0:02:24.6]} 13... h6 {[%clk
0:02:24.9]} 14. Bh4 {[%clk 0:02:24.4]} 14... b5 {[%clk 0:02:12.7]} 15. Qc2
{[%clk 0:02:21.7]} 15... a5 {[%clk 0:02:10.5]} 16. f3 {[%clk 0:02:17.3]} 16...
a4 {[%clk 0:02:08.3]} 17. Bd3 {[%clk 0:02:17.2]} 17... Qc7 {[%clk 0:01:55.1]}
18. Qe2 {[%clk 0:02:09.3]} 18... Nh5 {[%clk 0:01:38]} 19. Qe3 {[%clk 0:01:59]}
19... g5 {[%clk 0:01:18.5]} 20. Bg3 {[%clk 0:01:57.3]} 20... Nxg3 {[%clk
0:01:10.9]} 21. hxg3 {[%clk 0:01:57.4]} 21... O-O-O {[%clk 0:01:07.8]} 22. f4
{[%clk 0:01:31.6]} 22... Bxg2 {[%clk 0:00:57.7]} 23. Rh2 {[%clk 0:01:27.7]}
23... Bd5 {[%clk 0:00:57.5]} 24. O-O-O {[%clk 0:01:26]} 24... gxf4 {[%clk
0:00:51.5]} 25. gxf4 {[%clk 0:01:26]} 25... Bxa2 {[%clk 0:00:50]} 26. Rdh1
{[%clk 0:01:25.9]} 26... Bd5 {[%clk 0:00:49]} 27. Rg1 {[%clk 0:01:24]} 27... a3
{[%clk 0:00:32.3]} 28. b4 {[%clk 0:01:18.7]} 28... a2 {[%clk 0:00:32]} 29. Kb2
{[%clk 0:01:18.4]} 29... Rdg8 {[%clk 0:00:30.9]} 30. Re1 {[%clk 0:01:00.1]}
30... h5 {[%clk 0:00:23.5]} 31. f5 {[%clk 0:00:59]} 31... f6 {[%clk 0:00:19.9]}
32. Ng6 {[%clk 0:00:58.5]} 32... Bxh2 {[%clk 0:00:19.2]} 33. Nxh8 {[%clk
0:00:58.6]} 33... Rxh8 {[%clk 0:00:19.5]} 34. fxe6 {[%clk 0:00:58.9]} 34... Re8
{[%clk 0:00:18.7]} 35. Bf5 {[%clk 0:00:57.8]} 35... Kb8 {[%clk 0:00:18.5]} 36.
e7 {[%clk 0:00:55.4]} 36... Bd6 {[%clk 0:00:18.4]} 37. Qh6 {[%clk 0:00:47]}
37... Rxe7 {[%clk 0:00:17.1]} 38. Qf8+ {[%clk 0:00:45.1]} 38... Kb7 {[%clk
0:00:17.6]} 39. Rxe7 {[%clk 0:00:43.5]} 39... Qxe7 {[%clk 0:00:16.2]} 40. Qc8+
{[%clk 0:00:38.8]} 40... Ka7 {[%clk 0:00:16.9]} 41. Bc2 {[%clk 0:00:33.8]} 41...
Bxb4 {[%clk 0:00:14.5]} 0-1

[Event "Early-Titled-Tuesday-Blitz-February-20-2024"]
[Site "Chess.com"]
[Date "2024.02.20"]
[Round "2"]
[White "zajka-molotok"]
[Black "Chemim21"]
[Result "1-0"]
[WhiteElo "2502"]
[BlackElo "2226"]
[TimeControl "180+1"]
[EndTime "8:17:33 PST"]
[Termination "zajka-molotok won by resignation"]

1. e4 {[%clk 0:02:49.7]} 1... d5 {[%clk 0:02:57.6]} 2. exd5 {[%clk 0:02:47]}
2... Qxd5 {[%clk 0:02:57.7]} 3. Nc3 {[%clk 0:02:46.6]} 3... Qa5 {[%clk
0:02:57.7]} 4. d4 {[%clk 0:02:46.3]} 4... c6 {[%clk 0:02:58]} 5. Nf3 {[%clk
0:02:46.5]} 5... Nf6 {[%clk 0:02:58]} 6. Bc4 {[%clk 0:02:32.4]} 6... Bg4 {[%clk
0:02:49.7]} 7. h3 {[%clk 0:02:29.6]} 7... Bxf3 {[%clk 0:02:39]} 8. Qxf3 {[%clk
0:02:30.5]} 8... Nbd7 {[%clk 0:02:37.9]} 9. O-O {[%clk 0:02:22.9]} 9... e6
{[%clk 0:02:36.6]} 10. Ne2 {[%clk 0:02:07.8]} 10... Be7 {[%clk 0:02:29.4]} 11.
Bf4 {[%clk 0:02:06.6]} 11... O-O {[%clk 0:02:26.8]} 12. c3 {[%clk 0:02:06.2]}
12... Qb6 {[%clk 0:02:17.2]} 13. Bb3 {[%clk 0:01:56]} 13... a5 {[%clk
0:02:15.6]} 14. Rab1 {[%clk 0:01:37.4]} 14... a4 {[%clk 0:02:14]} 15. Bc2 {[%clk
0:01:35.5]} 15... c5 {[%clk 0:02:02]} 16. Rfd1 {[%clk 0:01:30.2]} 16... cxd4
{[%clk 0:01:59.9]} 17. Nxd4 {[%clk 0:01:31.1]} 17... Nd5 {[%clk 0:01:27.4]} 18.
Bg3 {[%clk 0:01:27.6]} 18... Bf6 {[%clk 0:01:21.4]} 19. Rd2 {[%clk 0:01:20.9]}
19... a3 {[%clk 0:01:19.3]} 20. bxa3 {[%clk 0:01:14.8]} 20... Qa5 {[%clk
0:01:14.6]} 21. Rxb7 {[%clk 0:01:12.5]} 21... Ne5 {[%clk 0:00:45.5]} 22. Bxe5
{[%clk 0:01:04.4]} 22... Bxe5 {[%clk 0:00:45.6]} 23. Bxh7+ {[%clk 0:01:04.2]}
23... Kxh7 {[%clk 0:00:44.8]} 24. Qh5+ {[%clk 0:01:01.7]} 24... Kg8 {[%clk
0:00:44.9]} 25. Qxe5 {[%clk 0:01:02.6]} 25... Qxc3 {[%clk 0:00:40.7]} 26. Re2
{[%clk 0:00:50.7]} 26... Rxa3 {[%clk 0:00:37.1]} 27. Kh2 {[%clk 0:00:36.8]}
27... Qc1 {[%clk 0:00:34.6]} 28. Nxe6 {[%clk 0:00:32]} 28... Qh6 {[%clk
0:00:23.1]} 29. Qxd5 {[%clk 0:00:28.5]} 29... fxe6 {[%clk 0:00:22.8]} 30. Rxe6
{[%clk 0:00:20.3]} 30... Qf4+ {[%clk 0:00:17.1]} 31. Kh1 {[%clk 0:00:20]} 31...
Rf7 {[%clk 0:00:14.3]} 32. Re8+ {[%clk 0:00:19.1]} 32... Kh7 {[%clk 0:00:12]}
33. Qh5+ {[%clk 0:00:19.1]} 33... Qh6 {[%clk 0:00:10.3]} 34. Qxh6+ {[%clk
0:00:19.5]} 34... Kxh6 {[%clk 0:00:10.6]} 35. Rxf7 {[%clk 0:00:20]} 35... Rxa2
{[%clk 0:00:10.4]} 36. Re6+ {[%clk 0:00:19.8]} 36... Kh7 {[%clk 0:00:08.9]} 37.
Ree7 {[%clk 0:00:20.7]} 1-0

[Event "Early-Titled-Tuesday-Blitz-February-20-2024"]
[Site "Chess.com"]
[Date "2024.02.20"]
[Round "2"]
[White "Larina_Maria"]
[Black "CaspiIsrael"]
[Result "0-1"]
[WhiteElo "2291"]
[BlackElo "2713"]
[TimeControl "180+1"]
[EndTime "8:17:35 PST"]
[Termination "CaspiIsrael won on time"]

1. e4 {[%clk 0:03:00.7]} 1... e5 {[%clk 0:02:43.1]} 2. Nf3 {[%clk 0:03:00]} 2...
Nc6 {[%clk 0:02:42.9]} 3. Nc3 {[%clk 0:02:59.9]} 3... Nf6 {[%clk 0:02:34.5]} 4.
Bb5 {[%clk 0:02:59.5]} 4... Nd4 {[%clk 0:02:34.2]} 5. Nxd4 {[%clk 0:02:59.7]}
5... exd4 {[%clk 0:02:34.1]} 6. e5 {[%clk 0:03:00.6]} 6... dxc3 {[%clk
0:02:33.9]} 7. exf6 {[%clk 0:03:00.7]} 7... Qxf6 {[%clk 0:02:32.5]} 8. dxc3
{[%clk 0:03:00.5]} 8... Bc5 {[%clk 0:02:31.6]} 9. O-O {[%clk 0:02:58.7]} 9...
O-O {[%clk 0:02:31.2]} 10. Bd3 {[%clk 0:02:56.7]} 10... g6 {[%clk 0:02:28.5]}
11. Bh6 {[%clk 0:02:54.5]} 11... Re8 {[%clk 0:02:24.2]} 12. Qd2 {[%clk
0:02:50.9]} 12... d5 {[%clk 0:02:19.6]} 13. Bg5 {[%clk 0:02:48.8]} 13... Qd6
{[%clk 0:02:16.1]} 14. Bf4 {[%clk 0:02:46.8]} 14... Qd8 {[%clk 0:02:12.4]} 15.
Rae1 {[%clk 0:02:43]} 15... Be6 {[%clk 0:02:12.2]} 16. Be3 {[%clk 0:02:28.1]}
16... Bf8 {[%clk 0:02:11.3]} 17. Bh6 {[%clk 0:02:23.6]} 17... Bxh6 {[%clk
0:02:08.1]} 18. Qxh6 {[%clk 0:02:23.2]} 18... Qf6 {[%clk 0:02:08.6]} 19. Qd2
{[%clk 0:02:14.1]} 19... c6 {[%clk 0:02:04.4]} 20. b3 {[%clk 0:02:13.8]} 20...
a5 {[%clk 0:02:03.7]} 21. a4 {[%clk 0:02:13.5]} 21... b6 {[%clk 0:02:03]} 22.
Re3 {[%clk 0:02:08]} 22... h5 {[%clk 0:02:02.2]} 23. Rfe1 {[%clk 0:02:07.3]}
23... c5 {[%clk 0:02:02.3]} 24. Rf3 {[%clk 0:02:07]} 24... Qg7 {[%clk 0:02:02]}
25. Bb5 {[%clk 0:01:48.6]} 25... Red8 {[%clk 0:01:58.7]} 26. Qg5 {[%clk
0:01:45]} 26... d4 {[%clk 0:01:57.1]} 27. c4 {[%clk 0:01:32.4]} 27... Rd6 {[%clk
0:01:56]} 28. h3 {[%clk 0:01:24.1]} 28... Rad8 {[%clk 0:01:54.6]} 29. Rf6 {[%clk
0:01:11.9]} 29... Kh7 {[%clk 0:01:46.3]} 30. Rf3 {[%clk 0:00:56.7]} 30... d3
{[%clk 0:01:40.3]} 31. cxd3 {[%clk 0:00:55.6]} 31... Rxd3 {[%clk 0:01:41.2]} 32.
Rxd3 {[%clk 0:00:53.8]} 32... Rxd3 {[%clk 0:01:42.1]} 33. Re3 {[%clk 0:00:50.8]}
33... Rd2 {[%clk 0:01:34.6]} 34. Bc6 {[%clk 0:00:45.7]} 34... Qa1+ {[%clk
0:01:32.9]} 35. Kh2 {[%clk 0:00:45.4]} 35... Rxf2 {[%clk 0:01:33.3]} 36. Be8
{[%clk 0:00:28.4]} 36... Qf6 {[%clk 0:01:20.8]} 37. Qg3 {[%clk 0:00:24]} 37...
h4 {[%clk 0:01:17.9]} 38. Qc7 {[%clk 0:00:20.8]} 38... Qf4+ {[%clk 0:01:12]} 39.
Qxf4 {[%clk 0:00:20.5]} 39... Rxf4 {[%clk 0:01:12.9]} 40. Bc6 {[%clk 0:00:17.8]}
40... Kg7 {[%clk 0:01:13]} 41. Kg1 {[%clk 0:00:17.1]} 41... Kf6 {[%clk
0:01:13.4]} 42. g3 {[%clk 0:00:13.7]} 42... hxg3 {[%clk 0:01:12]} 43. Rxg3
{[%clk 0:00:14.6]} 43... g5 {[%clk 0:01:11.5]} 44. Kg2 {[%clk 0:00:13.7]} 44...
Kg6 {[%clk 0:01:11.8]} 45. Bf3 {[%clk 0:00:12.8]} 45... f6 {[%clk 0:01:11.8]}
46. Bc6 {[%clk 0:00:12.3]} 46... Bf5 {[%clk 0:01:11.9]} 47. Be8+ {[%clk
0:00:11.3]} 47... Kh6 {[%clk 0:01:11.8]} 48. Bc6 {[%clk 0:00:11.5]} 48... Kh5
{[%clk 0:01:10.9]} 49. Re3 {[%clk 0:00:10.1]} 49... Kh4 {[%clk 0:01:08.7]} 50.
Be8 {[%clk 0:00:06.9]} 50... Rd4 {[%clk 0:01:05.7]} 0-1